bitfinex/quotes_ETHUSD_20220311
["timestamp","ask_amount","ask_price","bid_price","bid_amount"]
[1646968723267,2.9633661,2530.6,2530.0,1.0]
[1646968723568,1.97583,2530.5,2530.0,1.0]
[1646968723765,1.97583,2530.5,2529.8,0.98794]
[1646968725168,1.9758387,2530.4,2529.8,0.98794]
[1646968725469,0.98793,2530.2,2529.8,0.98794]
[1646968727019,0.9879087,2530.4,2529.8,0.98794]
[1646968728921,1.9757787,2530.4,2529.8,0.98794]
[1646968729119,2.9636487,2530.4,2529.8,0.98794]
[1646968729321,0.05454679,2530.3,2529.8,0.98794]
[1646968730566,0.05347246,2530.3,2529.9,0.95538276]
[1646968730767,0.05347246,2530.3,2530.0,0.98788]
[1646968730968,2.9636487,2530.4,2530.0,0.98788]
[1646968731978,2.9636487,2530.4,2530.0,0.98944262]
[1646968732775,1.97574,2530.4,2530.0,0.98944262]
[1646968733375,1.97574,2530.4,2530.0,0.30156262]
[1646968734015,1.97574,2530.4,2530.0,0.98945262]
[1646968734315,0.0427772,2530.3,2530.0,0.98945262]
[1646968734716,0.0427772,2530.3,2530.0,1.28945262]
[1646968736519,1.97574,2530.4,2530.0,1.28945262]
[1646968737321,1.97574,2530.4,2530.2,0.00153525]
[1646968739267,2.9636493,2530.4,2530.2,0.00153525]
[1646968739868,2.92574041,2530.4,2530.2,0.00153525]
[1646968740070,2.84103885,2530.4,2530.2,0.00153525]
[1646968740870,1.85312955,2530.4,2530.2,0.00153525]
[1646968741725,1.79868639,2530.4,2530.2,0.00153525]
[1646968742125,1.72813173,2530.4,2530.1,1.97798933]
[1646968742327,0.74026173,2530.4,2530.1,1.97798933]
[1646968744628,0.74026173,2530.4,2530.1,0.98783]
[1646968746176,1.72814173,2530.4,2530.1,0.98783]
[1646968746781,2.71604543,2530.4,2530.1,0.98783]
[1646968747181,1.72814173,2530.4,2530.1,0.98783]
[1646968747384,1.72814173,2530.4,2530.3,0.00152157]
[1646968750323,0.98788,2530.4,2530.3,0.00152157]
[1646968752132,1.97572,2530.4,2530.1,2.13367669]
[1646968753379,1.97572,2530.4,2530.1,0.98935157]
[1646968754781,0.05114556,2530.3,2530.1,0.00152157]
[1646968756083,0.05114556,2530.3,2530.2,0.98783]
[1646968756722,1.97572,2530.4,2530.2,0.98783]
[1646968757422,0.98788,2530.4,2530.3,1.01837322]
[1646968757828,2.96353,2530.6,2530.2,0.98936525]
[1646968758825,2.96353,2530.6,2530.4,1.11462635]
[1646968759024,0.98778,2530.5,2530.4,1.11462635]
[1646968761066,0.98778,2530.5,2530.2,0.98936525]
[1646968761268,1.97557,2530.5,2530.2,0.98936525]
[1646968762071,0.98778,2530.5,2530.4,0.00150789]
[1646968762672,3.1539481,2530.8,2530.4,0.80890789]
[1646968762673,2.16616,2530.8,2530.4,0.80890789]
[1646968762872,0.98776,2530.8,2530.4,1.79653789]
[1646968763073,0.98776,2530.8,2530.6,0.86762477]
[1646968763269,1.218,2531.1,2530.8,0.00110988]
[1646968763270,3.1931,2531.1,2530.8,0.00110988]
[1646968763470,0.98753,2531.0,2530.8,0.00110988]
[1646968763869,1.218,2531.1,2530.8,0.00110988]
[1646968764337,1.118,2531.1,2530.8,0.00110988]
[1646968764536,1.118,2531.1,2531.0,0.84967483]
[1646968764938,1.97489,2531.4,2531.0,0.84967483]
[1646968765140,3.1038558,2531.6,2531.1,4.57739477]
[1646968765141,0.00340373,2531.6,2531.1,4.57739477]
[1646968765340,0.00340373,2531.6,2531.5,1.08975388]
[1646968765538,1.189,2532.2,2531.4,1.1654]
[1646968765938,0.00340425,2531.6,2531.5,0.08788537]
[1646968766339,0.00340425,2531.6,2531.3,0.08645569]
[1646968766538,0.00340425,2531.6,2531.5,1.87143395]
[1646968766739,2.4446535,2532.3,2531.5,1.87143395]
[1646968766941,0.04164612,2532.2,2531.5,1.87143395]
[1646968767139,0.00340436,2531.6,2531.5,0.98722]
[1646968767975,0.98717,2531.9,2531.5,0.98722]
[1646968768270,0.00340442,2531.7,2531.5,0.98722]
[1646968769167,1.97437,2531.9,2531.5,0.98722]
[1646968769369,0.00340442,2531.7,2531.5,0.98722]
[1646968770273,0.98722,2531.8,2531.5,0.98722]
[1646968770471,1.97446,2531.8,2531.5,0.98722]
[1646968770670,0.00340438,2531.7,2531.5,0.98722]
[1646968771531,1.97446,2531.8,2531.5,0.98722]
[1646968771937,0.00340438,2531.7,2531.5,0.98722]
[1646968772833,1.97446,2531.8,2531.5,0.98722]
[1646968773034,0.00340438,2531.7,2531.5,0.98722]
[1646968773934,1.97446,2531.8,2531.5,0.98722]
[1646968774135,0.98716,2532.0,2531.7,1.00799539]
[1646968774335,0.98716,2532.0,2531.8,0.98708]
[1646968774534,0.04164612,2532.2,2531.8,0.98708]
[1646968774936,0.01361465,2532.3,2531.8,0.98708]
[1646968775135,0.04276116,2532.4,2532.1,0.90907958]
[1646968775366,0.04276116,2532.4,2532.2,0.98701]
[1646968775969,1.02977116,2532.4,2532.2,0.98701]
[1646968776168,0.98705,2532.3,2532.2,0.98701]
[1646968779525,0.98705,2532.3,2532.0,3.84353192]
[1646968779526,0.98705,2532.3,2532.0,2.97402]
[1646968779723,3.5,2532.2,2531.8,2.97421]
[1646968779925,0.04239802,2532.0,2531.4,7.23940435]
[1646968780123,0.04239802,2532.0,2531.4,5.91140435]
[1646968780331,0.05451356,2531.9,2531.4,5.8244]
[1646968780526,0.05451356,2531.9,2531.4,1.97451]
[1646968780925,0.05288089,2531.8,2531.2,3.0032]
[1646968781136,3.01508089,2531.8,2531.2,2.8059]
[1646968781329,0.05031153,2531.6,2531.2,2.8059]
[1646968781526,0.05031153,2531.6,2531.2,3.9236346]
[1646968781729,0.00340419,2531.8,2530.9,0.1975]
[1646968781730,0.46540419,2531.8,2530.9,0.1975]
[1646968781933,0.9874485,2531.6,2530.8,0.00110988]
[1646968782130,3.54785367,2531.5,2530.8,0.00110988]
[1646968782335,0.98755,2531.3,2530.8,0.00110988]
[1646968782533,0.04750848,2531.1,2530.8,0.00110988]
[1646968783070,0.05105466,2531.0,2530.8,0.00110988]
[1646968783274,0.05224844,2530.9,2530.8,0.00110988]
[1646968784270,0.98759,2531.1,2530.8,0.00110988]
[1646968784472,0.05372432,2531.2,2530.8,0.00110988]
[1646968785075,0.05372432,2531.2,2530.8,0.98868988]
[1646968786724,1.97508,2531.1,2530.8,0.98868988]
[1646968787124,0.05372432,2531.2,2530.8,0.98868988]
[1646968787324,0.05372432,2531.2,2531.0,0.00159601]
[1646968787725,0.98735,2531.4,2531.1,0.98734]
[1646968788727,1.2213,2531.6,2531.1,0.98734]
[1646968788728,0.00340408,2531.6,2531.1,0.98734]
[1646968788929,0.00340408,2531.6,2531.2,0.08991325]
[1646968789127,0.00340408,2531.6,2531.5,0.94607376]
[1646968789325,0.00340408,2531.6,2531.5,2.07187376]
[1646968789727,1.97414,2532.3,2531.5,2.26937376]
[1646968789925,0.00340441,2531.7,2531.5,2.26937376]
[1646968790127,4.41e-06,2531.7,2531.6,0.08209178]
[1646968790374,4.41e-06,2531.7,2531.6,5.10682133]
[1646968790570,4.41e-06,2531.7,2531.6,2.60989215]
[1646968790771,2.96106,2532.5,2531.6,3.59869215]
[1646968790974,1.97405,2532.5,2531.7,0.26627838]
[1646968791370,1.97405,2532.5,2532.0,0.98707]
[1646968791579,1.97405,2532.5,2532.1,1.16963692]
[1646968791776,1.97405,2532.5,2532.0,0.98707]
[1646968791974,0.987,2532.3,2532.0,0.98707]
[1646968792776,0.05089912,2532.2,2531.8,3.00700508]
[1646968792976,1.03807912,2532.2,2531.8,3.00700508]
[1646968793176,0.05285152,2532.1,2531.8,3.00700508]
[1646968793577,0.05628335,2532.1,2531.8,3.00700508]
[1646968793776,0.05628335,2532.1,2531.8,1.97412]
[1646968794027,1.04345335,2532.1,2531.8,2.97412]
[1646968794222,0.05628335,2532.1,2531.8,2.97412]
[1646968794419,0.05285152,2532.1,2531.8,2.97412]
[1646968794619,0.05285152,2532.1,2531.8,1.97412]
[1646968794620,0.05628335,2532.1,2531.8,1.97412]
[1646968795319,0.05628335,2532.1,2532.0,0.98703]
[1646968795519,0.05285152,2532.1,2532.0,0.98703]
[1646968795920,0.05627988,2532.1,2532.0,0.98703]
[1646968796729,0.05285152,2532.1,2532.0,1.83756122]
[1646968796924,0.05285152,2532.1,2532.0,0.98703]
[1646968798269,0.05285152,2532.1,2532.0,0.98581101]
[1646968799372,0.98718,2532.2,2532.0,0.98581101]
[1646968799569,0.99060193,2532.2,2531.8,2.97412]
[1646968800169,0.99060193,2532.2,2531.8,1.97412]
[1646968800170,0.04746816,2532.0,2531.8,1.97412]
[1646968800369,0.04746816,2532.0,2531.8,2.97412]
[1646968800569,0.04746816,2532.0,2531.8,1.97412]
[1646968800772,0.04746816,2532.0,2531.8,2.97412]
[1646968800972,0.04746816,2532.0,2531.8,1.97412]
[1646968801172,0.04746816,2532.0,2531.8,2.97412]
[1646968801173,1.03462816,2532.0,2531.8,2.97412]
[1646968801625,0.98716,2532.0,2531.8,1.97412]
[1646968801926,0.00342862,2532.0,2531.8,2.97412]
[1646968802126,0.00342862,2532.0,2531.8,1.97412]
[1646968802326,8.58884136,2532.9,2532.0,4.2]
[1646968802526,1.1307,2532.9,2532.6,1.0421328]
[1646968802726,2.23289059,2533.2,2532.6,2.0356328]
[1646968802924,2.96051,2533.1,2532.6,2.0356328]
[1646968803127,2.96051,2533.1,2532.7,0.98683]
[1646968803524,0.98673,2533.0,2532.7,0.98683]
[1646968803926,0.98671,2533.0,2532.7,0.98683]
[1646968805269,2.96025,2533.2,2532.7,0.98683]
[1646968805475,1.97356,2533.2,2533.1,0.88351974]
[1646968805671,0.13819997,2533.3,2533.2,0.98655]
[1646968805872,0.98663,2533.4,2533.2,0.98655]
[1646968806678,0.99038284,2533.4,2533.2,0.98655]
[1646968807276,0.00375284,2533.4,2533.2,4.5594936]
[1646968807476,0.00375284,2533.4,2533.2,1.0594936]
[1646968807676,1.97299,2533.8,2533.2,2.0594936]
[1646968807878,0.01500909,2533.8,2533.7,0.81932213]
[1646968808081,0.01500909,2533.8,2533.7,1.80569213]
[1646968808377,0.01500909,2533.8,2533.7,2.91629213]
[1646968808777,0.04421174,2534.4,2534.1,0.96169908]
[1646968809028,0.01500899,2534.3,2534.1,1.94798908]
[1646968809220,0.98634,2534.2,2534.1,1.94798908]
[1646968809820,0.98634,2534.2,2534.1,2.02233544]
[1646968810325,0.98628,2534.4,2534.1,2.02233544]
[1646968810521,0.00376967,2534.3,2534.1,2.02233544]
[1646968811322,0.98628,2534.4,2534.1,2.02233544]
[1646968811526,0.00376967,2534.3,2534.2,0.08313881]
[1646968811726,0.98993967,2534.3,2534.2,2.05542881]
[1646968812529,0.98617,2534.3,2534.2,2.05542881]
[1646968813570,0.98617,2534.3,2534.1,2.94798908]
[1646968813571,0.98617,2534.3,2534.1,1.98629]
[1646968813771,0.98617,2534.3,2534.1,0.98629]
[1646968813975,2.95875,2534.3,2534.1,0.98629]
[1646968814570,2.95875,2534.3,2534.1,2.04421882]
[1646968815070,0.9895764,2534.3,2534.1,2.04421882]
[1646968815670,0.0034064,2534.3,2534.1,2.04421882]
[1646968815875,0.0034064,2534.3,2534.2,0.08352689]
[1646968816172,0.9861,2534.6,2534.2,0.7519]
[1646968816370,0.9861,2534.6,2534.3,0.08990249]
[1646968816624,0.9861,2534.6,2534.5,0.82827188]
[1646968818127,0.00340638,2534.7,2534.6,0.0729871]
[1646968818526,2.11007997,2535.2,2534.6,0.0729871]
[1646968818527,0.00251178,2535.4,2535.2,1.03065482]
[1646968818725,2.3557,2535.7,2535.2,1.85005482]
[1646968818726,0.00251178,2535.7,2535.2,1.85005482]
[1646968818926,0.2574121,2535.9,2535.2,1.85005482]
[1646968819127,0.25490032,2535.9,2535.2,1.85005482]
[1646968819329,0.98587,2535.4,2535.2,1.85005482]
[1646968819527,0.98587,2535.4,2535.2,0.8194]
[1646968819727,0.98587,2535.4,2534.9,0.98585]
[1646968819929,0.98587,2535.4,2534.8,2.05771448]
[1646968820128,1.03326878,2535.4,2534.8,1.9717]
[1646968820372,3.5,2535.3,2534.3,0.08747628]
[1646968820573,0.04739878,2535.4,2534.6,1.07779097]
[1646968820971,1.972156,2535.3,2534.6,1.07779097]
[1646968821171,0.00343017,2534.9,2534.6,1.07779097]
[1646968821372,0.98951017,2534.9,2534.7,0.9861]
[1646968821974,0.98608,2534.9,2534.7,0.9861]
[1646968822377,0.98951017,2534.9,2534.7,0.9861]
[1646968823176,1.97217,2534.9,2534.7,0.9861]
[1646968823377,1.97217,2534.9,2534.5,2.97211]
[1646968823678,1.97559859,2534.9,2534.5,2.97211]
[1646968823876,1.97559859,2534.9,2534.5,1.97211]
[1646968824120,1.97455471,2534.9,2534.5,2.97211]
[1646968824322,1.97455471,2534.9,2534.5,1.97211]
[1646968824520,1.97112612,2534.9,2534.5,1.97211]
[1646968824725,0.00342859,2534.8,2534.5,1.97211]
[1646968824927,1.97570859,2534.8,2534.5,1.97211]
[1646968825129,3.94805859,2534.8,2534.5,1.97211]
[1646968825727,3.94463,2534.8,2534.5,1.97211]
[1646968825929,3.94805859,2534.8,2534.5,1.97211]
[1646968826828,3.94463,2534.8,2534.5,1.97211]
[1646968827331,3.94805873,2534.8,2534.7,0.00109079]
[1646968827979,3.94463,2534.8,2534.7,0.00109079]
[1646968829382,1.97235,2534.8,2534.7,0.00109079]
[1646968829581,1.97455485,2534.9,2534.7,0.00109079]
[1646968829782,0.98951873,2534.9,2534.7,0.00109079]
[1646968830386,0.98609,2534.9,2534.7,0.00109079]
[1646968830584,0.98609,2534.9,2534.7,0.98595]
[1646968830783,0.98951872,2534.9,2534.7,0.98595]
[1646968831726,0.98609,2534.9,2534.7,0.98595]
[1646968831925,0.98951871,2534.9,2534.7,0.98595]
[1646968832125,0.98951871,2534.9,2534.8,0.00107716]
[1646968832725,0.00342871,2534.9,2534.8,0.00107716]
[1646968832928,0.98595,2535.1,2534.9,0.9859]
[1646968833128,0.0034287,2535.0,2534.9,0.9859]
[1646968834128,1.97186,2535.1,2534.9,0.9859]
[1646968834329,1.9752887,2535.1,2535.0,0.87715962]
[1646968835373,1.97186,2535.1,2535.0,0.87715962]
[1646968836676,1.97186,2535.1,2534.9,1.05894974]
[1646968837776,1.97186,2535.1,2534.9,1.92891089]
[1646968837977,1.97528869,2535.1,2534.9,1.92891089]
[1646968838575,1.97528869,2535.1,2534.9,1.05894974]
[1646968838780,1.97186,2535.1,2534.9,1.05894974]
[1646968839220,1.97528868,2535.1,2534.9,0.9859]
[1646968840022,1.97186,2535.1,2534.9,0.9859]
[1646968840223,1.97186,2535.1,2534.8,1.0]
[1646968840224,1.97528868,2535.1,2534.8,1.0]
[1646968840423,0.98617,2535.0,2534.5,1.97214]
[1646968840623,0.98613,2534.9,2534.5,1.97214]
[1646968841629,1.9755487,2534.8,2534.5,1.97214]
[1646968842430,1.97212,2534.8,2534.5,1.97214]
[1646968842629,1.97554871,2534.8,2534.5,1.97214]
[1646968843770,1.97212,2534.8,2534.5,1.97214]
[1646968843971,1.97554871,2534.8,2534.5,1.97214]
[1646968844372,0.00342871,2534.8,2534.5,1.97214]
[1646968844972,0.98599,2535.0,2534.5,1.97214]
[1646968845173,0.00342871,2534.8,2534.7,0.98592]
[1646968845977,0.98596,2535.0,2534.7,0.98592]
[1646968846379,0.00342871,2534.9,2534.7,0.98592]
[1646968847235,0.98597,2534.9,2534.7,0.98592]
[1646968847440,0.98939871,2534.9,2534.7,0.9867381]
[1646968847838,0.98939871,2534.9,2534.8,0.89506659]
[1646968848440,0.98597,2534.9,2534.8,0.89506659]
[1646968849240,0.00342871,2535.0,2534.8,0.89506659]
[1646968849440,0.00342871,2535.0,2534.9,0.98583]
[1646968849640,0.98588,2535.2,2534.9,0.98583]
[1646968850040,0.0034287,2535.0,2534.9,0.98583]
[1646968850972,0.98588,2535.2,2534.9,0.98583]
[1646968851176,0.0034287,2535.1,2534.9,0.98583]
[1646968851879,0.0034287,2535.1,2534.9,1.05647225]
[1646968852078,0.9393087,2535.2,2534.9,1.05647225]
[1646968852278,0.00342869,2535.1,2534.9,1.05647225]
[1646968852678,0.00342869,2535.1,2534.9,0.98583]
[1646968852980,0.00342869,2535.1,2535.0,0.07041149]
[1646968853180,0.00342869,2535.1,2535.0,3.57041149]
[1646968853383,0.98577,2535.5,2535.3,1.0871987]
[1646968854427,0.98577,2535.5,2535.3,2.0729387]
[1646968855929,0.98577,2535.5,2535.3,0.98574]
[1646968856130,0.98577,2535.5,2535.2,2.97147]
[1646968856334,0.98588,2535.4,2535.2,2.97147]
[1646968857135,0.9896496,2535.4,2535.2,1.97147]
[1646968857435,0.9896496,2535.4,2535.2,2.97147]
[1646968857634,0.9896496,2535.4,2535.2,1.97147]
[1646968858075,0.98588,2535.4,2535.2,1.97147]
[1646968858476,0.9896496,2535.4,2535.2,1.97147]
[1646968859377,0.98588,2535.4,2535.2,1.97147]
[1646968859578,0.9896496,2535.4,2535.2,1.97147]
[1646968860579,0.98588,2535.4,2535.2,1.97147]
[1646968860777,0.9896496,2535.4,2535.2,1.97147]
[1646968861631,0.98588,2535.4,2535.2,1.97147]
[1646968862029,0.9896496,2535.4,2535.2,1.97147]
[1646968862930,0.98588,2535.4,2535.2,1.97147]
[1646968863130,0.9896496,2535.4,2535.2,1.97147]
[1646968864138,0.98588,2535.4,2535.2,1.97147]
[1646968864333,0.9896496,2535.4,2535.2,1.97147]
[1646968865377,0.98588,2535.4,2535.2,1.97147]
[1646968865583,0.9896496,2535.4,2535.2,1.97147]
[1646968866174,0.9896496,2535.4,2535.2,1.9702924]
[1646968866581,0.98588,2535.4,2535.2,1.9702924]
[1646968866785,0.9896496,2535.4,2535.2,1.9702924]
[1646968867181,1.97157,2535.6,2535.3,4.2]
[1646968867384,0.15327611,2535.8,2535.4,3.5]
[1646968867385,0.01507614,2535.8,2535.4,3.5]
[1646968867582,0.01507614,2535.8,2535.6,1.03231291]
[1646968867782,1.98798592,2535.9,2535.6,1.03231291]
[1646968867980,1.98798592,2535.9,2535.5,1.97134]
[1646968868180,0.98566,2535.8,2535.5,1.97134]
[1646968869041,0.98568,2535.7,2535.5,1.97134]
[1646968870040,2.95745,2535.7,2535.4,1.0]
[1646968870237,2.95745,2535.7,2535.2,0.9859]
[1646968870435,0.98592,2535.6,2535.2,0.9859]
[1646968871534,0.00376959,2535.5,2535.2,0.9859]
[1646968871736,0.9858,2535.4,2535.2,0.9859]
[1646968871939,0.00376959,2535.5,2535.2,0.9859]
[1646968872537,0.98592,2535.6,2535.2,0.9859]
[1646968872775,0.00376952,2535.5,2535.2,0.9859]
[1646968872979,0.00376952,2535.5,2535.4,1.05240374]
[1646968873175,0.00376952,2535.5,2535.4,2.03816374]
[1646968873677,0.98592,2535.6,2535.4,2.03816374]
[1646968874078,0.98968959,2535.6,2535.4,2.03816374]
[1646968874678,0.98968959,2535.6,2535.4,0.98576]
[1646968874882,0.98592,2535.6,2535.4,0.98576]
[1646968875184,0.00376959,2535.6,2535.4,0.98576]
[1646968875785,0.00376959,2535.6,2535.4,1.90298542]
[1646968875984,0.00376959,2535.6,2535.4,0.98576]
[1646968876186,0.04208552,2535.8,2535.3,2.97152]
[1646968876187,0.98575,2535.7,2535.3,2.97152]
[1646968876386,1.97539959,2535.6,2535.2,0.98593]
[1646968877232,1.97163,2535.6,2535.2,0.98593]
[1646968877435,1.97163,2535.6,2535.2,1.94471108]
[1646968877632,1.97556959,2535.5,2535.2,1.94471108]
[1646968877832,0.9859,2535.4,2535.2,1.94471108]
[1646968879133,0.9859,2535.4,2535.2,0.98593]
[1646968880877,0.98589,2535.6,2535.2,0.98593]
[1646968881077,0.00376945,2535.5,2535.2,0.98593]
[1646968881682,0.00376945,2535.5,2535.4,1.02678096]
[1646968881880,0.00376945,2535.5,2535.4,2.01253096]
[1646968882081,0.9858,2535.7,2535.4,2.01253096]
[1646968882286,0.00376959,2535.6,2535.4,2.01253096]
[1646968882483,0.00376959,2535.6,2535.4,2.09044352]
[1646968882684,0.00376959,2535.6,2535.4,2.01253096]
[1646968883285,1.97151,2535.7,2535.4,2.01253096]
[1646968883484,0.00376959,2535.6,2535.4,2.01253096]
[1646968884529,0.98571,2535.7,2535.4,2.01253096]
[1646968884729,0.00376959,2535.6,2535.4,2.01253096]
[1646968886930,1.9715,2535.7,2535.4,2.01253096]
[1646968887133,0.00376959,2535.6,2535.4,2.01253096]
[1646968887334,1.97547959,2535.6,2535.4,2.01253096]
[1646968888178,1.97171,2535.6,2535.4,2.01253096]
[1646968888377,0.00376959,2535.6,2535.4,2.01253096]
[1646968889379,1.97162,2535.7,2535.4,2.01253096]
[1646968889578,0.00376959,2535.6,2535.4,2.01253096]
[1646968890583,1.97162,2535.7,2535.4,2.01253096]
[1646968890781,0.00376959,2535.6,2535.4,2.01253096]
[1646968891631,1.9717,2535.6,2535.4,2.01253096]
[1646968891836,1.97036485,2535.6,2535.4,2.01253096]
[1646968892035,1.97413444,2535.6,2535.4,2.01253096]
[1646968892932,1.97036485,2535.6,2535.4,2.01253096]
[1646968893132,1.97413444,2535.6,2535.4,2.01253096]
[1646968893537,0.98957959,2535.6,2535.4,2.01253096]
[1646968894134,0.98581,2535.6,2535.4,2.01253096]
[1646968894334,0.00376959,2535.6,2535.5,0.07112306]
[1646968895283,1.00223592,2535.9,2535.5,0.07112306]
[1646968895481,0.00376958,2535.7,2535.6,0.98581]
[1646968896084,0.98957958,2535.7,2535.6,0.98581]
[1646968896483,0.98581,2535.7,2535.6,0.98581]
[1646968897288,0.00376958,2535.8,2535.6,0.98581]
[1646968897689,1.98798592,2535.9,2535.6,0.98581]
[1646968897894,0.00376957,2535.8,2535.6,0.98581]
[1646968898893,1.98798592,2535.9,2535.6,0.98581]
[1646968899126,0.00376957,2535.8,2535.6,0.98581]
[1646968900128,1.98798592,2535.9,2535.6,0.98581]
[1646968900327,0.00376957,2535.8,2535.6,0.98581]
[1646968901430,1.98798592,2535.9,2535.6,0.98581]
[1646968901634,0.00376957,2535.8,2535.6,0.98581]
[1646968902535,1.98798592,2535.9,2535.6,0.98581]
[1646968902779,0.00376957,2535.8,2535.6,0.98581]
[1646968903782,1.98798592,2535.9,2535.6,0.98581]
[1646968903982,0.00376957,2535.8,2535.6,0.98581]
[1646968905083,1.98798592,2535.9,2535.6,0.98581]
[1646968905283,0.00376957,2535.8,2535.6,0.98581]
[1646968906084,1.98798592,2535.9,2535.6,0.98581]
[1646968906286,0.00376957,2535.8,2535.6,0.98581]
[1646968907135,0.00376957,2535.8,2535.5,1.07980584]
[1646968907337,1.98798592,2535.9,2535.5,0.07980584]
[1646968907536,0.00376957,2535.8,2535.5,0.07980584]
[1646968907736,1.97151,2535.7,2535.5,0.07980584]
[1646968907936,2.95727,2535.7,2535.5,0.07980584]
[1646968908340,2.95727,2535.7,2535.4,1.02678096]
[1646968908539,1.9715,2535.7,2535.4,1.02678096]
[1646968908739,2.96101148,2535.7,2535.4,1.02678096]
[1646968908939,3.9431815,2535.6,2535.4,1.02678096]
[1646968909139,3.9431815,2535.6,2535.2,0.08090709]
[1646968909439,3.9431815,2535.6,2535.0,0.3]
[1646968909440,3.5,2535.5,2535.0,0.3]
[1646968909640,4.9290315,2535.6,2535.0,0.07986458]
[1646968910040,3.9435827,2535.4,2535.0,0.07986458]
[1646968910281,0.9859,2535.3,2535.0,0.37986458]
[1646968910481,0.9859,2535.3,2535.0,0.07986458]
[1646968910680,0.9859,2535.3,2535.1,0.90178741]
[1646968911081,1.9718,2535.3,2535.1,0.90178741]
[1646968913891,1.97096064,2535.3,2535.1,0.90178741]
[1646968919283,1.97096064,2535.3,2535.1,0.85178741]
[1646968921938,1.97096064,2535.3,2535.0,0.07986458]
[1646968923038,1.97096064,2535.3,2535.2,0.89001882]
[1646968925138,1.97096064,2535.3,2535.0,1.06571458]
[1646968925388,1.97096064,2535.3,2535.0,0.07986458]
[1646968925589,1.97096064,2535.3,2534.8,6.27112]
[1646968926793,1.97096064,2535.3,2535.1,1.00776974]
[1646968932135,1.92096064,2535.3,2535.1,1.00776974]
[1646968934184,1.92096064,2535.3,2535.1,1.00673861]
[1646968936837,1.92096064,2535.3,2535.1,2.00673861]
[1646968938436,1.92096064,2535.3,2535.1,3.97821861]
[1646968938639,1.92096064,2535.3,2535.1,4.97821861]
[1646968940691,1.92096064,2535.3,2535.1,3.97821861]
[1646968944134,1.92096064,2535.3,2535.1,2.00673861]
[1646968944135,5.42096064,2535.3,2535.1,2.00673861]
[1646968944335,5.42096064,2535.3,2535.1,1.00673861]
[1646968944336,1.92096064,2535.3,2535.1,1.00673861]
[1646968945237,1.92096064,2535.3,2535.1,1.99261861]
[1646968945636,1.92096064,2535.3,2535.1,0.98588]
[1646968946037,1.92096064,2535.3,2534.9,2.97156]
[1646968946640,1.92096064,2535.3,2535.0,0.88287957]
[1646968946840,1.92096064,2535.3,2535.0,1.86876957]
[1646968947040,1.92096064,2535.3,2535.0,0.98589]
[1646968947241,5.46986784,2535.3,2534.9,1.97156]
[1646968947441,1.96986784,2535.3,2534.9,1.97156]
[1646968947642,0.9860305,2535.2,2534.8,2.9852]
[1646968947888,0.98605,2535.1,2534.8,4.87103794]
[1646968948090,0.98605,2535.1,2534.8,1.88583794]
[1646968949094,0.98605,2535.1,2534.8,0.98603]
[1646968949293,1.97204,2535.1,2534.8,0.98603]
[1646968949492,5.47204,2535.1,2534.8,0.98603]
[1646968949693,1.97204,2535.1,2534.7,3.5]
[1646968949894,1.19762955,2535.5,2534.7,3.5]
[1646968949895,1.19762955,2535.5,2534.9,0.08357039]
[1646968950097,1.19511343,2535.5,2535.1,0.9495265]
[1646968950298,0.00351343,2535.5,2535.1,0.9495265]
[1646968950494,0.05033846,2535.7,2535.1,0.9495265]
[1646968950697,0.01649592,2535.9,2535.1,0.9495265]
[1646968950895,0.00351389,2535.5,2535.1,0.9495265]
[1646968951546,0.00351389,2535.5,2535.2,0.98564]
[1646968951743,0.98571,2535.6,2535.2,0.98564]
[1646968951941,0.00351389,2535.5,2535.2,0.98564]
[1646968952142,0.00351389,2535.5,2535.2,1.0629934]
[1646968952944,0.98571,2535.6,2535.2,1.0629934]
[1646968953144,1.97148,2535.6,2535.2,1.0629934]
[1646968953343,0.00372822,2535.5,2535.2,1.0629934]
[1646968954244,1.97148,2535.6,2535.4,1.13803568]
[1646968954443,0.00372822,2535.5,2535.4,2.12374568]
[1646968955291,1.97148,2535.6,2535.4,0.98571]
[1646968955692,1.97520829,2535.6,2535.4,0.98571]
[1646968956091,1.97520829,2535.6,2535.0,4.95289]
[1646968956092,0.05231032,2535.5,2535.0,4.95289]
[1646968956292,2.02427832,2535.5,2535.0,0.98596]
[1646968956492,0.04852408,2535.3,2534.6,0.1971]
[1646968956696,2.02067408,2535.3,2534.6,0.1971]
[1646968956896,0.0510347,2535.2,2534.6,0.1971]
[1646968957999,1.03595119,2535.2,2534.6,0.1971]
[1646968958196,1.03083025,2535.1,2534.6,0.1971]
[1646968958396,3.00296025,2535.1,2534.6,2.16915]
[1646968959234,3.00296025,2535.1,2534.7,0.84545057]
[1646968959435,0.98607,2534.9,2534.7,0.84545057]
[1646968959836,1.03081005,2535.1,2534.7,0.84545057]
[1646968960443,2.21719,2535.3,2534.8,0.98604]
[1646968960842,0.98579,2535.3,2535.1,0.99342215]
[1646968961446,0.98579,2535.3,2535.1,0.98584]
[1646968961642,1.97161,2535.3,2535.1,0.98584]
[1646968962042,1.97161,2535.3,2535.0,2.27068]
[1646968962244,1.97161,2535.3,2534.9,0.08194816]
[1646968962544,1.97161,2535.3,2534.8,0.00081049]
[1646968962786,1.97161,2535.3,2535.0,0.98597]
[1646968963191,1.97161,2535.3,2534.8,0.00081049]
[1646968963588,2.01995389,2535.3,2534.8,0.98683049]
[1646968963790,0.98603,2535.1,2534.8,0.98683049]
[1646968963989,1.97205,2535.1,2534.8,0.98683049]
[1646968964388,0.98602,2535.1,2534.8,0.98683049]
[1646968964790,0.04834389,2535.3,2534.8,0.98683049]
[1646968966095,2.01999389,2535.3,2534.8,0.98683049]
[1646968966744,1.97165,2535.3,2534.8,0.98683049]
[1646968967543,1.97165,2535.3,2535.0,0.00081071]
[1646968967743,1.97165,2535.3,2535.1,0.98586]
[1646968968945,1.97165,2535.3,2535.1,1.79186222]
[1646968969746,1.97165,2535.3,2535.1,0.98586]
[1646968971387,1.97165,2535.3,2535.0,3.98088431]
[1646968971593,1.97165,2535.3,2535.0,1.00081071]
[1646968971794,1.97165,2535.3,2535.0,0.00081071]
[1646968972192,1.97165,2535.3,2534.8,1.07324195]
[1646968972592,1.97165,2535.3,2534.9,1.07788304]
[1646968972793,1.97165,2535.3,2534.9,2.06384304]
[1646968974338,1.97165,2535.3,2534.9,0.98596]
[1646968975738,5.47165,2535.3,2534.9,0.98596]
[1646968976540,1.97165,2535.3,2534.9,0.98596]